Workbook

Sheet Forecast
B3: New Commodity Pound Alottment
B4: Bulk Potatoes (100506)
B6: Remaining Entitlement from last yr.
B7: Bulk Potatoes (100506)
B9: Pound Balance
B10: Total Pounds Drawn Down | C10: =M29 -> 0
B11: Total Pounds Remaining | C11: =(C4+C7)-C10 -> 0
A14: SEPDS Code | B14: Cavendish UPC Code | C14: Product Description | D14: Pack Size | E14: Net Weight Per Case | F14: Servings Per Case | G14: Net Weight Per 1/2 Cup (Grams) | H14: # Pieces per 1/2 Cup Serving | I14: Daily Servings | J14: Days Served Each Month | K14: Est. Total Monthly Servings | L14: Finished Cases Needed Monthly | M14: # of Months to be Served during School Year | N14: Annual Raw LBS of Donated Food | O14: Approximate Annual Finished LBS DF x 55% | P14: USDA Average Commodity Cost for Bulk Potatoes, 100506 | Q14: Commodity Dollars Required | R14: Click To Clear Line
B16: =IF(ISBLANK(A16)," ",VLOOKUP(A16,Products,2,FALSE)) ->  | C16: =IF(ISBLANK(A16)," ",VLOOKUP(A16,Products,3,FALSE)) ->  | D16: =IF(ISBLANK(A16)," ",VLOOKUP(A16,Products,4,FALSE)) ->  | E16: =IF(ISBLANK(A16)," ",VLOOKUP(A16,Products,6,FALSE)) ->  | F16: =IF(ISBLANK(A16)," ",VLOOKUP(A16,Products,7,FALSE)) ->  | G16: =IF(ISBLANK(A16)," ",VLOOKUP(A16,Products,11,FALSE)) ->  | H16: =IF(ISBLANK(A16)," ",VLOOKUP(A16,Products,16,FALSE)) ->  | K16: =IF(ISBLANK(J16),"",(I16*J16)) ->  | L16: =IF(ISBLANK(J16)," ",ROUNDUP((K16/F16),0)) ->  | N16: =IFERROR(VLOOKUP(A16,'Product Info'!A:E,5,FALSE)*L16*M16, " ") ->  | O16: =IF(ISBLANK(J16),"",(N16*0.55)) ->  | P16: $0.1313/lb | Q16: =IF(ISBLANK(J16),"",(N16*VLOOKUP(A16,Products,8,FALSE))) -> 
L17: =IF(ISBLANK(J17)," ",ROUNDUP((K17/F17),0)) ->  | N17: =IFERROR(VLOOKUP(A17,'Product Info'!A:E,5,FALSE)*L17*M17, " ") ->  | P17: $0.1313/lb
N18: =IFERROR(VLOOKUP(A18,'Product Info'!A:E,5,FALSE)*L18*M18, " ") ->  | P18: $0.1313/lb
N19: =IFERROR(VLOOKUP(A19,'Product Info'!A:E,5,FALSE)*L19*M19, " ") ->  | P19: $0.1313/lb
N20: =IFERROR(VLOOKUP(A20,'Product Info'!A:E,5,FALSE)*L20*M20, " ") ->  | P20: $0.1313/lb
N21: =IFERROR(VLOOKUP(A21,'Product Info'!A:E,5,FALSE)*L21*M21, " ") ->  | P21: $0.1313/lb
N22: =IFERROR(VLOOKUP(A22,'Product Info'!A:E,5,FALSE)*L22*M22, " ") ->  | P22: $0.1313/lb
N23: =IFERROR(VLOOKUP(A23,'Product Info'!A:E,5,FALSE)*L23*M23, " ") ->  | P23: $0.1313/lb
N24: =IFERROR(VLOOKUP(A24,'Product Info'!A:E,5,FALSE)*L24*M24, " ") ->  | P24: $0.1313/lb
N25: =IFERROR(VLOOKUP(A25,'Product Info'!A:E,5,FALSE)*L25*M25, " ") ->  | P25: $0.1313/lb
N26: =IFERROR(VLOOKUP(A26,'Product Info'!A:E,5,FALSE)*L26*M26, " ") ->  | P26: $0.1313/lb
N27: =IFERROR(VLOOKUP(A27,'Product Info'!A:E,5,FALSE)*L27*M27, " ") ->  | P27: $0.1313/lb
K29: Total | L29: =SUM(L16:L27) -> 0 | M29: =SUM(N16:N27) -> 0 | N29: =SUM(O16:O27) -> 0 | O29: =SUM(P16:P27) -> 0 | P29: =SUM(Q16:Q27) -> 0
A32: Annual Planner
A33: Instructions: In the monthly columns below, enter the number of cases that are expected to be used each month for each product. The column entitled "Yearly Total Planned" shows the number of cases that you have planned based on the information entered in this monthly table. The column entitled "Yearly Total Needed" shows the number of cases that you need to order, based on the information calculated in the table above.
A34: SEPDS Code | B34: Cavendish UPC Code | C34: Product Description | D34: July | E34: Aug | F34: Sept | G34: Oct | H34: Nov | I34: Dec | J34: Jan | K34: Feb | L34: Mar | M34: Apr | N34: May | O34: June | P34: Yearly Total Planned | Q34: Yearly Total Needed
A36: 1486930216 | B36: 14869 30216 | C36: Cavendish Prairie Select 1/2" Oven Crinkle | P36: =SUM(D36:O36) -> 0 | Q36: =IFERROR((VLOOKUP(B36,B:Q,11,FALSE))*(VLOOKUP(B36,B:Q,12,FALSE))," ") -> 0
A37: 5621034500 | B37: 56211 34500-2 | C37: Cavendish Foodservice Patties | P37: =SUM(D37:O37) -> 0 | Q37: =IFERROR((VLOOKUP(B37,B:Q,11,FALSE))*(VLOOKUP(B37,B:Q,12,FALSE))," ") -> 0
A38: 5621004101 | B38: 56210 04101-2 | C38: Cavendish Oven Nuggets | P38: 0 | Q38: 0
A39: 5621005222 | B39: 56210 05222-2 | C39: Cavendish Seasoned Chunky Diced | P39: 0 | Q39: 0
A40: 5621005307 | B40: 56210 05307 | C40: Cavendish Clear Coat Reduce Sodium 3/8" | P40: 0 | Q40: 0
A41: 5621005301 | B41: 56210 05301-2 | C41: Cavendish Clear Coat 3/8" Regular Cut | P41: 0 | Q41: 0
A42: 5621005311 | B42: 56210 05311-2 | C42: Cavendish Clear Coat 1/4" Shoestring | P42: 0 | Q42: 0
A43: 5621005361 | B43: 56210 05361 | C43: Cavendish CrispToGo 3/8" (formerly DeliverCrisp) | P43: 0 | Q43: 0
A44: 5621005501 | B44: 56210 05501-2 | C44: Cavendish Fine Coat 1/4" Shoestring | P44: 0 | Q44: 0
A45: 5621005502 | B45: 56210 05502-2 | C45: Cavendish Fine Coat Reg 3/8" Straight Cut | P45: 0 | Q45: 0
A46: 5621005503 | B46: 56210 05503-2 | C46: Cavendish Fine Coat 5/16" Straight Cut | P46: 0 | Q46: 0
A47: 5621005505 | B47: 56210 05505-2 | C47: Cavendish Fine Coat Thin SC Skin On | P47: 0 | Q47: 0
A48: 5621035101 | B48: 56210 35101-2 | C48: Cavendish Select Spicy 3/8" Straight Cut | P48: 0 | Q48: 0

Sheet Product Info
Z1: Jamestown, North Dakota
A2: 100506 Bulk Potatoes | B2: Bulk Potato Program: Cavendish UPC Code | C2: Products on Approved SY21-22 SEPDS | D2: Pack Size | E2: DF Pounds | F2: Net Weight Per Case | G2: Servings Per Case | H2: USDA Average Commodity Cost for Bulk Potatoes, 100506 | I2: Commodity Dollars Drawn Down per case | J2: 1/2 Serving Size (oz) | K2: Net Weight Per 1/2 Cup of Vegetables (Grams) | L2: Child Serving Size | M2: Calories | N2: Sodium mg | O2: Calories from Fat | P2: # Pieces per 1/2 Cup Serving
A3: Example | B3: Example | C3: Using a 30/lb net case with 190 serv per cs | D3: 6/5 | F3: 30 | G3: 190 | K3: 71g | P3: 8 | Q3: Cavendish Farms
A4: Example | B4: Example | C4: Using a 27/lb net case with 191 serv per cs | D4: 6/4.5 | F4: 27 | G4: 191 | K4: 63g | P4: 12 | Q4: Cavendish Farms
Q5: Cavendish Farms
A6: SEPDS Code | B6: Internal Dash 2 added when appropriate
A8: 1486930216 | B8: 14869 30216 | C8: Prairie Select 1/2" Oven Crinkle Cut | D8: 6/5 | E8: =F8/0.55 -> 54.54545455 | F8: 30 | G8: 243 | H8: 0.1313 | I8: =E8*H8 -> 7.161818182 | J8: 2.25 | K8: 55g | L8: 1/2 cup | M8: 70 | N8: 15 | O8: 18 | P8: 10
A9: 5621034500 | B9: 56211 34500-2 | C9: Cavendish Hash Brown Patties | D9: 6/5 | E9: 54.54545455 | F9: 30 | G9: 97 | H9: 0.1313 | I9: =E9*H9 -> 7.161818182 | J9: 4.9 | K9: 138g | L9: 1/2 cup | M9: 260 | N9: 490 | O9: 126 | P9: 2
A10: 5621004101 | B10: 56210 04101-2 | C10: Cavendish Oven Nuggets | D10: 6/5 | E10: 54.54545455 | F10: 30 | G10: 190 | H10: 0.1313 | I10: 7.161818182 | J10: 2.52 | K10: 71g | L10: 1/2 cup | M10: 130 | N10: 250 | O10: 54 | P10: 8
A11: 5621005222 | B11: 56210 05222-2 | C11: Cavendish Flavor Crisp Seasoned Diced | D11: 6/5 | E11: 54.54545455 | F11: 30 | G11: 153 | H11: 0.1313 | I11: 7.161818182 | J11: 3.1 | K11: 88g | L11: 1/2 cup | M11: 130 | N11: 470 | O11: 36 | P11: 20
A12: 5621005307 | B12: 56210 05307 | C12: Cavendish Clear Coat Reduce Sodium 3/8" | D12: 6/5 | E12: 54.54545455 | F12: 30 | G12: 212 | H12: 0.1313 | I12: 7.161818182 | J12: 2.3 | K12: 64g | L12: 1/2 cup | M12: 128 | N12: 120 | O12: 60 | P12: 12
A13: 5621005301 | B13: 56210 05301-2 | C13: Cavendish Clear Coat 3/8" Straight Cut | D13: 6/4.5 | E13: 49.09090909 | F13: 27 | G13: 191 | H13: 0.1313 | I13: 6.445636364 | J13: 2.3 | K13: 64g | L13: 1/2 cup | M13: 110 | N13: 340 | O13: 36 | P13: 12
A14: 5621005311 | B14: 56210 05311-2 | C14: Cavendish Clear Coat 1/4" Shoestring | D14: 6/4.5 | E14: 49.09090909 | F14: 27 | G14: 191 | H14: 0.1313 | I14: 6.445636364 | J14: 2.3 | K14: 64g | L14: 1/2 cup | M14: 110 | N14: 360 | O14: 41 | P14: 24
A15: 5621005361 | B15: 56210 05361 | C15: Cavendish CrispToGo 3/8" SC (formerly DeliverCrisp) | D15: 6/4.5 | E15: =F15/0.55 -> 49.09090909 | F15: 27 | G15: 187 | H15: 0.1313 | I15: =E15*H15 -> 6.445636364 | J15: 2.3 | K15: 64g | L15: 1/2 cup | M15: 110 | N15: 360 | P15: 8
A16: 5621005501 | B16: 56210 05501-2 | C16: Cavendish Fine Coat 1/4" Shoestring | D16: 6/4.5 | E16: 49.09090909 | F16: 27 | G16: 191 | H16: 0.1313 | I16: 6.445636364 | J16: 2.3 | K16: 64g | L16: 1/2 cup | M16: 105 | N16: 330 | O16: 32 | P16: 18
A17: 5621005502 | B17: 56210 05502-2 | C17: Cavendish Fine Coat Reg 3/8" Straight Cut | D17: 6/5 | E17: 54.54545455 | F17: 30 | G17: 212 | H17: 0.1313 | I17: 7.161818182 | J17: 2.3 | K17: 64g | L17: 1/2 cup | M17: 90 | N17: 305 | O17: 23 | P17: 12
A18: 5621005503 | B18: 56210 05503-2 | C18: Cavendish Fine Coat 5/16" Straight Cut | D18: 6/5 | E18: 54.54545455 | F18: 30 | G18: 212 | H18: 0.1313 | I18: 7.161818182 | J18: 2.3 | K18: 64g | L18: 1/2 cup | M18: 100 | N18: 325 | O18: 27 | P18: 12
A19: 5621005505 | B19: 56210 05505-2 | C19: Cavendish Fine Coat Thin SC Skin On | D19: 6/5 | E19: 54.54545455 | F19: 30 | G19: 212 | H19: 0.1313 | I19: 7.161818182 | J19: 2.3 | K19: 64g | L19: 1/2 cup | M19: 100 | N19: 325 | O19: 27 | P19: 12
A20: 5621035101 | B20: 56210 35101-2 | C20: Cavendish Select Spicy 3/8" Straight Cut | D20: 6/4.5 | E20: 49.09090909 | F20: 27 | G20: 175 | H20: 0.1313 | I20: 6.445636364 | J20: 2.3 | K20: 64g | L20: 1/2 cup | M20: 100 | N20: 300 | O20: 27 | P20: 12
A21: 1486930216 | B21: 14869 30216 | C21: Cavendish Prairie Select 1/2" Oven Crinkle | D21: 6/5 | E21: 30 | H21: 0.1018 | J21: 243 | K21: 55g | S21: 10 | V21: =SUM(T21*U21) -> 0 | W21: =SUM(V21/J21) -> 0 | X21: =SUM(W21*54.55) -> 0 | Y21: =SUM(X21*0.55) -> 0 | Z21: $0.1013/lb | AA21: =SUM(X21*0.1013) -> 0
C22: SAMPLE
C23: Cavendish Oven Nuggets | D23: 6/5 | E23: 30 | J23: 190 | K23: 71g | S23: 8 | T23: 100 | U23: 4 | V23: =SUM(T23*U23) -> 400 | W23: =SUM(V23/190) -> 2.105263158 | X23: =SUM(W23*54.55) -> 114.8421053 | Y23: =SUM(X23*0.55) -> 63.16315789 | Z23: $0.1018/lb | AA23: =SUM(X23*0.1013) -> 11.63350526
C24: Cavendish Clear Coat 3/8" Regular Cut | D24: 6/4.5 | E24: 27 | J24: 191 | K24: 63g | S24: 12 | T24: 5000 | U24: 3 | V24: =SUM(T24*U24) -> 15000 | W24: =SUM(V24/191) -> 78.53403141 | X24: =SUM(W24*49.09) -> 3855.235602 | Y24: =SUM(X24*0.55) -> 2120.379581 | Z24: $0.1018/lb | AA24: =SUM(X24*0.1013) -> 390.5353665
A27: Delivery by Case by Month
C29: Fee For Service | D29: July | E29: Aug | J29: Sept | K29: Oct | S29: Nov | T29: Dec | U29: Jan | V29: Feb | W29: Mar | X29: Apr | Y29: May | Z29: June | AA29: Total | AB29: 0
B30: 14869 30216 | C30: Cavendish Prairie Select 1/2" Oven Crinkle | AA30: =SUM(D30:Z30) -> 0 | AB30: =AB29-(AA30*54.55) -> 0
B31: 56211 34500-2 | C31: Cavendish Foodservice Patties | AA31: 0 | AB31: =AB30-(AA31*54.55) -> 0
B32: 56210 04101-2 | C32: Cavendish Oven Nuggets | AA32: 0 | AB32: =AB30-(AA32*54.55) -> 0
B33: 56210 05222-2 | C33: Cavendish Seasoned Chunky Diced | AA33: 0 | AB33: =AB32-(AA33*54.55) -> 0
B34: 56210 05307 | C34: Cavendish Clear Coat Reduce Sodium 3/8" | AA34: 0 | AB34: =AB33-(AA34*54.55) -> 0
B35: 56210 05301-2 | C35: Cavendish Clear Coat 3/8" Regular Cut | AA35: 0 | AB35: =AB30-(AA35*49.09) -> 0
B36: 56210 05311-2 | C36: Cavendish Clear Coat 1/4" Shoestring | AA36: 0 | AB36: =AB35-(AA36*49.09) -> 0
B37: 56210 05501-2 | C37: Cavendish Fine Coat 1/4" Shoestring | AA37: 0 | AB37: =AB36-(AA37*49.09) -> 0
B38: 56210 05502-2 | C38: Cavendish Fine Coat Reg 3/8" Straight Cut | AA38: 0 | AB38: =AB37-(AA38*54.55) -> 0
B39: 56210 05503-2 | C39: Cavendish Fine Coat 5/16" Straight Cut | AA39: 0 | AB39: 0
B40: 56210 05505-2 | C40: Cavendish Fine Coat Thin SC Skin On | AA40: 0 | AB40: 0
B41: 56209 06601-2 | C41: Cavendish Always Crisp Shoestring | AA41: 0 | AB41: =AB40-(AA41*49.09) -> 0
B42: 56210 06604-2 | C42: Cavendish Always Crisp 3/8" Crinkle Cut | AA42: 0 | AB42: =AB41-(AA42*54.55) -> 0
B43: 56210 06607-2 | C43: Cavendish Always Crisp 10 Cut Wedge | AA43: 0 | AB43: =AB42-(AA43*54.55) -> 0
B44: 56210 35101-2 | C44: Cavendish Select Spicy 3/8" Straight Cut | AA44: 0 | AB44: =AB43-(AA44*49.09) -> 0
B45: 14869 30216 | C45: Cavendish Prairie Select 1/2" Oven Crinkle | AA45: 0 | AB45: 0
D46: =SUM(D30:D45) -> 0 | E46: 0 | J46: 0 | K46: 0 | S46: 0 | T46: 0 | U46: 0 | V46: 0 | W46: 0 | X46: 0 | Y46: 0 | Z46: 0 | AA46: 0
B49: By entering your total allocation of pounds below the yellow arrrow and then entering your number of cases to delivered monthly, this chart will provide Cavendish the ability to
B50: properly forecast your needs for the school year and will show approximately how many cases you will purchase commercially once your allocation has been depleted.
